Cogmind - Beta 13 @@@ ROGUE MODE // 2024.04.27 @ 16:58:39 Player: e.v.o Result: Self-destructed Performance ------------- Evolutions (1) 500 Regions Visited (2) 400 Robots Destroyed (14) 70 Value Destroyed (373) 373 Prototype IDs (2) 40 Alien Tech Used (0) 0 Bonus (0) 0 TOTAL SCORE: 1383 Bonus ------- None Cogmind --------- Core Integrity 303/400 Matter 220/300 Energy 100/100 System Corruption 0% Temperature Cool (0) Movement Flying (32) Location -9/Materials Parts ------- > --- POWER (1) -------- (None) > --- PROPULSION (3) --- Flight Unit Flight Unit VTOL Module > --- UTILITY (2) ------ Small Storage Unit Improved Targeting Computer > --- WEAPON (3) ------- Light Assault Rifle Light Assault Rifle Shotgun > --- INVENTORY (8) ---- Flight Unit Flight Unit Flight Unit Heat Sink Beam Rifle Light Assault Rifle Peak State ------------ > --- POWER ------------ Light Ion Engine > --- PROPULSION ------- Flight Unit Flight Unit VTOL Module > --- UTILITY ---------- Small Storage Unit Improved Targeting Computer > --- WEAPON ----------- Light Assault Rifle Light Assault Rifle Shotgun > --- INVENTORY -------- Flight Unit Flight Unit Flight Unit Heat Sink Beam Rifle Light Assault Rifle [Rating: 12] Favorites ----------- Power Light Ion Engine Engine Light Ion Engine Propulsion Flight Unit Leg Aluminum Leg Flight Unit Flight Unit Utility Small Storage Unit Device Heat Sink Storage Small Storage Unit Processor Improved Targeting Computer Weapon Light Assault Rifle Energy Gun Medium Laser Ballistic Gun Light Assault Rifle Build | -11 -10 -9 ------- Run | Yrd Mat Mat Slots Evolved 2 | . . 2 Power . | . . . Propulsion 1 | . . 1 Utility . | . . . Weapon 1 | . . 1 Parts Attached 23 | 7 8 8 Power 4 | 2 1 1 Engine 4 | 2 1 1 Core . | . . . Reactor . | . . . Propulsion 7 | 2 2 3 Treads . | . . . Leg 2 | 2 . . Wheel . | . . . Hover . | . . . Flight 5 | . 2 3 Utility 5 | 1 3 1 Device 1 | . 1 . Storage 3 | 1 2 . Processor 1 | . . 1 Hackware . | . . . Protection . | . . . Artifact . | . . . Weapon 7 | 2 2 3 Energy Gun 1 | 1 . . Energy Cannon . | . . . Ballistic Gun 6 | 1 2 3 Ballistic Cannon . | . . . Launcher . | . . . Special Weapon . | . . . Impact Weapon . | . . . Slashing Weapon . | . . . Piercing Weapon . | . . . Special Melee Weapon . | . . . Unidentified Prototypes . | . . . Parts Lost 1 | . 1 . Power . | . . . Propulsion . | . . . Utility . | . . . Weapon 1 | . 1 . Highest Loss Streak 1 | . 1 . To Critical Strikes . | . . . Average Slot Usage (%) 92 | . 90 99 Engine 12 | . 13 10 Leg 12 | . 17 . Flight 16 | . 10 33 Device 4 | . 5 2 Storage 13 | . 14 11 Processor 2 | . . 8 Energy Gun 4 | . 5 . Ballistic Gun 24 | . 22 33 Naked Turns . | . . . Heaviest Build 28 | 13 28 13 Greatest Support 20 | 20 20 12 Greatest Overweight (x) 4 | 4 1 1 Average Overweight (x) . | . . . Largest Inventory Capacity 15 | 8 15 8 Average Capacity 10 | 7 11 8 Most Carried 7 | 2 7 6 Average Carried 2 | 1 2 3 Final Capacity 8 | 8 8 8 Final Carried 6 | 2 4 6 Class Distribution -------------------- 46% | Mutant 33% | Scavenger-Mutant 20% | Scavenger-Gunner Dominant Class ---------------- Mutant | -10/Materials Scavenger-Gunner | -9/Materials Resources | -11 -10 -9 ----------- Run | Yrd Mat Mat Matter Collected 465 | 246 162 57 Remotely . | . . . Salvage Created 534 | . 440 94 Parts 32 | . 26 6 Haulers Intercepted . | . . . Recyclers Shooed 1 | . 1 . Parts Field Recycled . | . . . Retrieved Matter . | . . . Parts Self-Destructed . | . . . Prevented . | . . . Kills | -11 -10 -9 ------- Run | Yrd Mat Mat Combat Hostiles Destroyed 11 | . 9 2 Guns 11 | . 9 2 Classes Destroyed 6 | . 5 1 Worker 1 | . 1 . Recycler 1 | . 1 . Watcher 1 | . 1 . Swarmer 2 | . 2 . Grunt 8 | . 7 1 Sentry 1 | . . 1 Best Kill Streak 9 | . 9 1 Combat Bots Only 5 | . 5 1 Max Kills in Single Turn 1 | . 1 1 Gunslinging . | . . . Exploded . | . . . Melee . | . . . Uniques/NPCs Destroyed . | . . . Combat | -11 -10 -9 -------- Run | Yrd Mat Mat Hostile Shots Fired 94 | . 61 33 Missed 34 | . 16 18 Damage Taken 678 | . 465 213 Core 229 | . 132 97 Absorbed by Shields . | . . . Core Remaining (%) 73 | 100 47 . Volleys Fired 55 | . 38 17 Largest 3 | . 2 3 Hottest 70 | . 70 63 Shots Fired 124 | . 76 48 Gun 124 | . 76 48 Cannon . | . . . Launcher . | . . . Special . | . . . Kinetic 111 | . 63 48 Thermal 13 | . 13 . Explosive . | . . . Electromagnetic . | . . . Robot Hit Streak 7 | . 7 7 Robot Miss Streak 5 | . 3 5 Penetration Max . | . . . Secondary Targets . | . . . Shots Hit Robots 74 | . 44 30 Core Hits 33 | . 25 8 Critical Kills . | . . . Critical Parts Destroyed 1 | . 1 . Critical Strikes 1 | . 1 . Destroy 1 | . 1 . Melee Attacks . | . . . Impact . | . . . Slashing . | . . . Piercing . | . . . Sneak Attacks . | . . . Combat Hostiles . | . . . Follow-up Attacks . | . . . Damage Inflicted 659 | . 431 228 Guns 659 | . 431 228 Cannons . | . . . Explosions . | . . . Melee . | . . . Ramming . | . . . Kinetic 558 | . 330 228 Thermal 101 | . 101 . Explosive . | . . . Electromagnetic . | . . . Impact . | . . . Slashing . | . . . Piercing . | . . . Highest Corruption 1 | . 1 . Average Corruption 1 | . 1 . Corruption Purged . | . . . Corruption Blocked . | . . . Effects 3 | . 3 . Data Loss (minor) 2 | . 2 . Misfires 1 | . 1 . Overload Shots . | . . . Overflow Damage . | . . . Projectiles . | . . . Explosions . | . . . Melee . | . . . Knockbacks . | . . . Impact . | . . . Kinetic . | . . . Secondary . | . . . Self-Inflicted Damage . | . . . Shots . | . . . Rammed . | . . . Targets Rammed . | . . . Kicked . | . . . Crushed . | . . . Highest Temperature 120 | . 120 68 Average Temperature 42 | . 52 26 Received Heat Transfer 288 | . 189 99 Siege Activations . | . . . Robots Corrupted . | . . . Combat Hostiles . | . . . Parts Fried . | . . . Impact Corruptions . | . . . Robots Melted . | . . . Combat Hostiles . | . . . Parts Melted . | . . . Heat Transferred 296 | . 296 . Parts Sabotaged . | . . . Parts Stolen . | . . . Parts Stripped . | . . . Power Chain Reactions . | . . . Alert | -11 -10 -9 ------- Run | Yrd Mat Mat Peak Influence 255 | . 255 168 Initial 33 | . . 33 Average 93 | . 110 86 Maximum Alert Level 1 | . 1 . Low Security (%) 89 | 100 84 100 Level 1 10 | . 15 . Level 2 . | . . . Level 3 . | . . . Level 4 . | . . . Level 5 . | . . . High Security . | . . . Max Security . | . . . Squads Dispatched 6 | . 2 4 Investigation 3 | . 1 2 Extermination . | . . . Reinforcement 3 | . 1 2 Assault . | . . . Garrison . | . . . Intercept . | . . . Searches Triggered . | . . . Construction Impeded . | . . . Haulers Reinforced . | . . . Active Scanning Responses . | . . . Cargo Convoy Interrupts . | . . . Stealth | -11 -10 -9 --------- Run | Yrd Mat Mat Distress Signals 3 | . . 3 Communications Jammed . | . . . Distress Signals . | . . . Times Spotted 25 | . 16 9 Peak Tracking Total 7 | . 4 7 Tactical Retreats 2 | . 1 1 Traps | -11 -10 -9 ------- Run | Yrd Mat Mat Traps Triggered . | . . . Indirectly . | . . . Trap Hack Attempts . | . . . Triggered . | . . . Disarmed . | . . . Reprogrammed 6 | . . 6 Reused 1 | . . 1 Traps Extracted . | . . . Installed . | . . . Triggered 1 | . . 1 Machines | -11 -10 -9 ---------- Run | Yrd Mat Mat Machines Disabled . | . . . Max in Single Turn . | . . . Machines Repaired . | . . . Machines Dismantled . | . . . Machines Sabotaged . | . . . Overloaded Fab Kills . | . . . Hacking | -11 -10 -9 --------- Run | Yrd Mat Mat Machines Accessed 5 | . 3 2 Terminals 5 | . 3 2 Fabricators . | . . . Repair Stations . | . . . Recycling Units . | . . . Scanalyzers . | . . . Garrison Access . | . . . Total Hacks 15 | . 9 6 Successful 8 | . 6 2 Failed 7 | . 3 4 Catastrophic . | . . . Database Lockouts . | . . . Manual . | . . . Terminals 15 | . 9 6 Fabricators . | . . . Repair Stations . | . . . Recycling Units . | . . . Scanalyzers . | . . . Garrison Access . | . . . Terminal Hacks 8 | . 6 2 Prototype ID Bank 1 | . 1 . Locate Traps 2 | . 2 . Reprogram Traps 1 | . . 1 Maintenance Status 1 | . 1 . Transport Status 1 | . 1 . Hauler Manifests 2 | . 1 1 Fabricator Hacks . | . . . Repair Station Hacks . | . . . Recycling Unit Hacks . | . . . Scanalyzer . | . . . Garrison Access Hacks . | . . . Unauthorized Hacks . | . . . Terminals . | . . . Fabricators . | . . . Repair Stations . | . . . Recycling Units . | . . . Scanalyzers . | . . . Garrison Access . | . . . Data Cores Recovered . | . . . Used . | . . . Hacking Detections 5 | . 3 2 Full Trace Events 3 | . 2 1 Feedback Events 1 | . 1 . Corruption 1 | . 1 . Feedback Blocked . | . . . Robot Schematics Acquired . | . . . Robots Built . | . . . Authchips . | . . . Time . | . . . Total Robot Build Rating . | . . . Part Schematics Acquired . | . . . Parts Built . | . . . Authchips . | . . . Time . | . . . Total Part Build Rating . | . . . Parts Repaired . | . . . Time . | . . . Parts Recycled . | . . . Recycled Matter . | . . . Retrieved Matter . | . . . Retrieved Components . | . . . Parts Scanalyzed . | . . . Part Schematics Acquired . | . . . Parts Damaged . | . . . Bothacking | -11 -10 -9 ------------ Run | Yrd Mat Mat Used RIF Installer . | . . . Robots Hacked . | . . . Non-combat . | . . . Combat . | . . . Robot Hacks Applied . | . . . Relay Couplers Released . | . . . Fabnet Peak Effective % . | . . . Robots Rewired . | . . . Allies Hacked . | . . . Hacks Repelled . | . . . Allies | -11 -10 -9 -------- Run | Yrd Mat Mat Total Allies . | . . . Largest Group . | . . . Highest-Rated Group . | . . . Highest-Rated Ally . | . . . Total Orders . | . . . Ally Attacks . | . . . Total Damage . | . . . Kills . | . . . Allies Corrupted . | . . . Allies Melted . | . . . Intel | -11 -10 -9 ------- Run | Yrd Mat Mat Robot Analysis Total . | . . . Derelict Logs Recovered . | . . . Drone Launches . | . . . Drone Recoveries . | . . . Exploration | -11 -10 -9 ------------- Run | Yrd Mat Mat Turns Passed 638 | 66 417 155 Spaces Moved 545 | 49 237 259 Core 25 | 25 . . Treads . | . . . Legs 126 | 24 102 . Wheels . | . . . Hover . | . . . Flight 394 | . 135 259 Fastest Speed 32 | 50 37 32 Average Speed 79 | 110 122 34 Slowest Speed 250 | 250 190 112 Overloaded Moves . | . . . Propulsion Burnouts . | . . . Robots Hopped 1 | . . 1 Cave-ins Triggered . | . . . Exploration Rate (%) 18 | 3 30 23 Regions Visited 2 Branch Regions . Pre-discovered Areas . | . . . Known Exits Taken . | . . . Unknown Exits Taken 2 | 1 1 . Scrap Searched . | . . . Spaces Dug . | . . . Terrain Destroyed . | . . . Melee . | . . . Projectile . | . . . AOE . | . . . Terrain Rammed . | . . . Walls Destroyed . | . . . Machines Disabled . | . . . Actions | -11 -10 -9 --------- Run | Yrd Mat Mat Total 651 | 57 301 293 Wait 12 | . 7 5 Move 541 | 48 236 257 Hop 1 | . . 1 Pick Up 11 | 2 5 4 Fast Attach 9 | 6 3 . Attach 6 | . 3 3 Detach . | . . . Swap 8 | 1 2 5 Drop 8 | . 7 1 Fire 55 | . 38 17 Melee . | . . . Ram . | . . . Kick . | . . . Crush . | . . . Escape Stasis . | . . . Rewire . | . . . Trap . | . . . Miscellaneous . | . . . Route ------- -11/Scrapyard -10/Materials (discovered 2 exits: *Mat / [*Min]) -9/Materials History --------- Turn | Location | Event 36 | -11/Scrapyard | Discovered new exit (range 15) 67 | -11/Scrapyard | Entered Materials 183 | -10/Materials | Discovered new exit (range 16) 440 | -10/Materials | Core integrity fell below 50% 476 | -10/Materials | Discovered new exit (range 16) 484 | -10/Materials | Entered another Materials area 484 | -9/Materials | Evolved 2 slots: Propulsion x1, Weapon x1 639 | -9/Materials | Self-destructed Last Messages --------------- 00613_ K-01 Serf collects debris. 00617_ G-34 Mercenary suffers critical hit (Burn). 00617_ G-34 Mercenary destroyed. 00618_ K-01 Serf collects debris. 00620_ K-01 Serf destroyed. 00622_ G-34 Mercenary destroyed. 00624_ K-01 Serf collects debris. 00627_ Dropped Lgt. Ion Engine. 00629_ K-01 Serf collects debris. 00630_ ALERT: Hostiles spotted, dispatching reinforcements to Terminal M002. 00632_ U-05 Engineer lays Concrete. 00633_ K-01 Serf collects debris. 00634_ K-01 Serf suffers critical hit (Burn). 00635_ U-05 Engineer lays Concrete. 00637_ Critical hit (Burn: +37). 00637_ K-01 Serf collects debris. 00637_ U-05 Engineer lays Concrete. 00639_ K-01 Serf suffers critical hit (Burn). Map ----- +----------------------------------------------------+ | | | | | | | ????????????????????????????????????????? | | ????????????????????????????????????????? | | ????????????????????????????????????????? | | ????????????????????????????????????????? | | ????????????????????????????????????????? | | ????????????????????????????????????????? | | ????????????????????????#+#?????????????? | | ??????????????????????# #????????????? | | ??????????????????????# ????????????? | | ??????????????????????# ????????????? | | ??????????????????????# ????????????? | | ??????????????????????# ????????????? | | ??????????????????????# ????????????? | | ??????????????????????# #?????##?????? | | ??????????????????????# #???? #?????? | | ??????????????????????# ##### #?????? | | ??????????????????????# #?????? | | ??????????????????????# #?????? | | ??????????????????????# #?????? | | ??????????????????????# [[ ####??? | | ???????????????????????# [[ !##?? | | ???????????????????????# * !#?? | | ???????????????????????# @ !#?? | | ???????????????????????# !#?? | | ???????????????????????# ######+## !#?? | | ???????????????????????# # """ #????#?? | | ???????????????????????# # """ #??????? | | ??????????????????###+##!k/ """ #??????? | | ??????????????????# *%=# #??????? | | ??????????????????# %=# #??????? | | ??????????????????# [%=# #??????? | | ??????????????????# Y ####+###??????? | | ??????????????????# m #### #????????? | | ??????????????????# Y #????????? | | ??????????# ??????# #????????? | | ??????????# ?????# u"""" #???###??? | | ????????### ????# """" ##### #### | | ???????? ##### u"""" ## !* # | | ???????? !!! ^ ##" ="""# | | ??????? !! ##T """# | | ??????? !! #" """# | | ??????" # # | | ???????" + """# | | ???????" # """# | | ???????" ########### """# | | ??????" #?#######?# # | | ?????? # [ #?# # | +----------------------------------------------------+ Best States ------------- Heat Dissipation 38 Energy Generation 10 Energy Capacity 250 Matter Stores 300 Matter Capacity 300 Sight Range 16 Terrain Scan Density 10 Evasion (%) 63 Targeting Accuracy 6 Item Schematics ----------------- None Robot Schematics ------------------ None Fabricated ------------ Nothing Alien Tech Used ----------------- None Achievements -------------- None Challenges ------------ None Game ------ Seed TransportHeartDoomcannon Manual? 0 Play Time 00:12:41 Cumulative 51.9 hours Start 2024.04.27 @ 15:07:58 End 2024.04.27 @ 16:58:39 Sessions 1 Manual Loads 0 Difficulty Rogue Special Mode None Game No. 83 Rogue 67 Adventurer 16 Explorer 0 Win Type - Total 0 Types 0/0/0/0/0/0/0/0/0 Lore% 17 Gallery% 35 Achievement% 26 Wizard Run 0 Options --------- Layout 1 ASCII 0 Keyboard 0 Movement Mouse Keybinds 0 Fullscreen 2 Font 24/Smallcaps Map View 50x35 Zoom Use 0% Tactical HUD 1 Map Filters NONE Filters NONE Steam 1 RUN: 1f538baf-4f0e-4318-a42a-f7366809dc16